[Event "Titled Tuesday Blitz January 17 Early 2023"]
[White "Piesik, Piotr"]
[Black "Jovic, Stanoje"]
[WhiteFideId "1136194"]
[BlackFideId "905020"]
[WhiteElo "2426"]
[BlackElo "2075"]
[Result "1-0"]
[Round "03"]
[TimeControl "180+2"]
[Date "2023.01.17"]
[WhiteClock "0:00:13"]
[BlackClock "0:00:01"]

1. Nf3 {[%clk 0:03:00]}  Nf6 {[%clk 0:02:59]} 2. g3 {[%clk 0:03:00]}  b5 {[%clk 0:02:58]} 3. Bg2 {[%clk 0:03:01]}  Bb7 {[%clk 0:02:59]} 4. O-O {[%clk 0:03:02]}  e6 {[%clk 0:02:59]} 5. d3 {[%clk 0:03:02]}  c5 {[%clk 0:02:59]} 6. e4 {[%clk 0:03:02]}  d5 {[%clk 0:02:59]} 7. Nbd2 {[%clk 0:03:02]}  a5 {[%clk 0:02:55]} 8. a4 {[%clk 0:03:02]}  b4 {[%clk 0:02:55]} 9. Qe2 {[%clk 0:03:01]}  Be7 {[%clk 0:02:51]} 10. Re1 {[%clk 0:03:01]}  O-O {[%clk 0:02:50]} 11. e5 {[%clk 0:03:01]}  Nfd7 {[%clk 0:02:50]} 12. h4 {[%clk 0:02:57]}  Nc6 {[%clk 0:02:49]} 13. Nf1 {[%clk 0:02:57]}  Nd4 {[%clk 0:02:45]} 14. Nxd4 {[%clk 0:02:57]}  cxd4 {[%clk 0:02:45]} 15. h5 {[%clk 0:02:55]}  Rc8 {[%clk 0:02:42]} 16. h6 {[%clk 0:02:56]}  g6 {[%clk 0:02:41]} 17. Bf4 {[%clk 0:02:53]}  b3 {[%clk 0:02:37]} 18. cxb3 {[%clk 0:02:42]}  Qb6 {[%clk 0:02:35]} 19. Nh2 {[%clk 0:02:36]}  Qxb3 {[%clk 0:02:32]} 20. Rec1 {[%clk 0:02:36]}  Ba6 {[%clk 0:02:28]} 21. Bf1 {[%clk 0:02:34]}  Nc5 {[%clk 0:02:20]} 22. Qd2 {[%clk 0:02:30]}  Nxd3 {[%clk 0:02:08]} 23. Bg5 {[%clk 0:02:28]}  Bb4 {[%clk 0:02:02]} 24. Qe2 {[%clk 0:02:22]}  Bc4 {[%clk 0:01:23]} 25. Qf3 {[%clk 0:02:13]}  f5 {[%clk 0:01:10]} 26. exf6 {[%clk 0:01:54]}  Nxc1 {[%clk 0:01:08]} 27. Qg4 {[%clk 0:01:54]}  Kf7 {[%clk 0:01:02]} 28. Rxc1 {[%clk 0:01:52]}  Qxb2 {[%clk 0:00:54]} 29. Nf3 {[%clk 0:01:46]}  d3 {[%clk 0:00:45]} 30. Rb1 {[%clk 0:01:27]}  Qc3 {[%clk 0:00:33]} 31. Re1 {[%clk 0:01:14]}  Qxe1 {[%clk 0:00:26]} 32. Nxe1 {[%clk 0:01:13]}  Bxe1 {[%clk 0:00:26]} 33. Qd4 {[%clk 0:01:02]}  Rc7 {[%clk 0:00:23]} 34. Bxd3 {[%clk 0:00:57]}  Bxd3 {[%clk 0:00:21]} 35. Qxd3 {[%clk 0:00:58]}  Bc3 {[%clk 0:00:18]} 36. Kg2 {[%clk 0:00:42]}  Rb8 {[%clk 0:00:17]} 37. Qa6 {[%clk 0:00:38]}  Rbb7 {[%clk 0:00:15]} 38. Qa8 {[%clk 0:00:37]}  Bxf6 {[%clk 0:00:13]} 39. Bxf6 {[%clk 0:00:36]}  Kxf6 {[%clk 0:00:14]} 40. Qxa5 {[%clk 0:00:34]}  d4 {[%clk 0:00:12]} 41. g4 {[%clk 0:00:30]}  Rd7 {[%clk 0:00:12]} 42. g5+ {[%clk 0:00:30]}  Kf7 {[%clk 0:00:11]} 43. Qe5 {[%clk 0:00:28]}  d3 {[%clk 0:00:11]} 44. Qg7+ {[%clk 0:00:25]}  Ke8 {[%clk 0:00:11]} 45. Qg8+ {[%clk 0:00:25]}  Ke7 {[%clk 0:00:11]} 46. Qxh7+ {[%clk 0:00:26]}  Kd8 {[%clk 0:00:12]} 47. Qh8+ {[%clk 0:00:24]}  Kc7 {[%clk 0:00:10]} 48. Qc3+ {[%clk 0:00:24]}  Kb8 {[%clk 0:00:10]} 49. Qd2 {[%clk 0:00:24]}  Rb3 {[%clk 0:00:08]} 50. Kf3 {[%clk 0:00:24]}  e5 {[%clk 0:00:08]} 51. Ke3 {[%clk 0:00:24]}  Re7 {[%clk 0:00:07]} 52. Qa5 {[%clk 0:00:22]}  e4 {[%clk 0:00:04]} 53. Qd5 {[%clk 0:00:20]}  Rbb7 {[%clk 0:00:02]} 54. a5 {[%clk 0:00:19]}  Rbd7 {[%clk 0:00:02]} 55. Qb5+ {[%clk 0:00:18]}  Ka7 {[%clk 0:00:02]} 56. Qb6+ {[%clk 0:00:18]}  Ka8 {[%clk 0:00:02]} 57. Kd2 {[%clk 0:00:19]}  Rb7 {[%clk 0:00:01]} 58. Qd8+ {[%clk 0:00:18]}  Ka7 {[%clk 0:00:01]} 59. Qd4+ {[%clk 0:00:18]}  Ka6 {[%clk 0:00:01]} 60. Qd6+ {[%clk 0:00:16]}  Kxa5 {[%clk 0:00:01]} 61. Qa3+ {[%clk 0:00:16]}  Kb6 {[%clk 0:00:01]} 62. f3 {[%clk 0:00:13]} 1-0


[Site "https://www.chess.com"]

[Event "Titled Tuesday Blitz January 17 Early 2023"]
[White "Pfreundt, Jakob"]
[Black "marik_spb"]
[WhiteFideId "12918156"]
[WhiteElo "2407"]
[BlackElo "2466"]
[Result "0-1"]
[Round "03"]
[TimeControl "180+2"]
[Date "2023.01.17"]
[WhiteClock "0:00:02"]
[BlackClock "0:00:14"]

1. Nf3 {[%clk 0:03:00]}  Nf6 {[%clk 0:02:59]} 2. g3 {[%clk 0:03:00]}  e6 {[%clk 0:02:58]} 3. Bg2 {[%clk 0:03:00]}  d5 {[%clk 0:02:58]} 4. d4 {[%clk 0:02:57]}  Be7 {[%clk 0:02:55]} 5. c4 {[%clk 0:02:57]}  O-O {[%clk 0:02:54]} 6. Nc3 {[%clk 0:02:57]}  b6 {[%clk 0:02:54]} 7. Ne5 {[%clk 0:02:52]}  Bb7 {[%clk 0:02:53]} 8. Bg5 {[%clk 0:02:41]}  Nbd7 {[%clk 0:02:48]} 9. O-O {[%clk 0:02:32]}  h6 {[%clk 0:02:35]} 10. Nxd7 {[%clk 0:02:25]}  Qxd7 {[%clk 0:02:33]} 11. Bxf6 {[%clk 0:02:23]}  Bxf6 {[%clk 0:02:32]} 12. cxd5 {[%clk 0:02:22]}  exd5 {[%clk 0:02:30]} 13. e3 {[%clk 0:02:23]}  Rfd8 {[%clk 0:02:11]} 14. b4 {[%clk 0:02:10]}  c5 {[%clk 0:02:05]} 15. bxc5 {[%clk 0:02:11]}  bxc5 {[%clk 0:02:05]} 16. Rb1 {[%clk 0:02:01]}  Rac8 {[%clk 0:01:45]} 17. Na4 {[%clk 0:02:00]}  cxd4 {[%clk 0:01:15]} 18. exd4 {[%clk 0:02:01]}  Ba6 {[%clk 0:01:04]} 19. Re1 {[%clk 0:01:15]}  Bc4 {[%clk 0:01:04]} 20. Nc5 {[%clk 0:01:08]}  Qf5 {[%clk 0:00:41]} 21. Rb7 {[%clk 0:01:02]}  Re8 {[%clk 0:00:40]} 22. Re3 {[%clk 0:00:20]}  Rxe3 {[%clk 0:00:34]} 23. fxe3 {[%clk 0:00:21]}  Bg5 {[%clk 0:00:34]} 24. Kh1 {[%clk 0:00:10]}  Bxe3 {[%clk 0:00:33]} 25. h4 {[%clk 0:00:06]}  Qf2 {[%clk 0:00:31]} 26. Kh2 {[%clk 0:00:03]}  Bxd4 {[%clk 0:00:29]} 27. Nb3 {[%clk 0:00:03]}  Be5 {[%clk 0:00:28]} 28. Qf3 {[%clk 0:00:03]}  Qxf3 {[%clk 0:00:19]} 29. Bxf3 {[%clk 0:00:04]}  Rd8 {[%clk 0:00:17]} 30. Rxa7 {[%clk 0:00:03]}  d4 {[%clk 0:00:17]} 31. Nd2 {[%clk 0:00:03]}  Be6 {[%clk 0:00:16]} 32. a4 {[%clk 0:00:01]}  d3 {[%clk 0:00:16]} 33. a5 {[%clk 0:00:01]}  Bc3 {[%clk 0:00:15]} 34. Ne4 {[%clk 0:00:02]}  Bd4 {[%clk 0:00:15]} 35. a6 {[%clk 0:00:02]}  Bxa7 {[%clk 0:00:14]} 0-1


[Site "https://www.chess.com"]

[Event "Titled Tuesday Blitz January 17 Early 2023"]
[White "Avazkhonov, Alikhon"]
[Black "Aggelis, Nikolaos"]
[WhiteFideId "14208504"]
[BlackFideId "4213220"]
[WhiteElo "1538"]
[BlackElo "2270"]
[Result "0-1"]
[Round "03"]
[TimeControl "180+2"]
[Date "2023.01.17"]
[WhiteClock "0:00:10"]
[BlackClock "0:00:54"]

1. d4 {[%clk 0:03:00]}  Nf6 {[%clk 0:02:56]} 2. c4 {[%clk 0:03:01]}  g6 {[%clk 0:02:56]} 3. Nc3 {[%clk 0:03:02]}  d5 {[%clk 0:02:57]} 4. cxd5 {[%clk 0:03:02]}  Nxd5 {[%clk 0:02:58]} 5. e4 {[%clk 0:03:02]}  Nxc3 {[%clk 0:02:58]} 6. bxc3 {[%clk 0:03:03]}  Bg7 {[%clk 0:02:59]} 7. Be3 {[%clk 0:03:02]}  O-O {[%clk 0:03:00]} 8. Qd2 {[%clk 0:03:02]}  c5 {[%clk 0:02:59]} 9. Nf3 {[%clk 0:03:02]}  Qa5 {[%clk 0:02:58]} 10. Rb1 {[%clk 0:02:58]}  Nc6 {[%clk 0:02:56]} 11. Rb5 {[%clk 0:02:46]}  cxd4 {[%clk 0:02:55]} 12. Rxa5 {[%clk 0:02:45]}  dxe3 {[%clk 0:02:55]} 13. Qxe3 {[%clk 0:02:33]}  Nxa5 {[%clk 0:02:55]} 14. Be2 {[%clk 0:02:27]}  Be6 {[%clk 0:02:54]} 15. Kf1 {[%clk 0:02:09]}  Rac8 {[%clk 0:02:50]} 16. Nd4 {[%clk 0:02:08]}  Bxa2 {[%clk 0:02:46]} 17. g3 {[%clk 0:02:08]}  Nc4 {[%clk 0:02:36]} 18. Qc1 {[%clk 0:01:58]}  Ne5 {[%clk 0:02:35]} 19. Qa3 {[%clk 0:01:54]}  Be6 {[%clk 0:02:30]} 20. Nxe6 {[%clk 0:01:52]}  fxe6 {[%clk 0:02:30]} 21. Qxa7 {[%clk 0:01:29]}  Rxc3 {[%clk 0:02:29]} 22. Qxb7 {[%clk 0:01:15]}  Nd3 {[%clk 0:02:24]} 23. Bxd3 {[%clk 0:01:08]}  Rxd3 {[%clk 0:02:24]} 24. Qxe7 {[%clk 0:01:09]}  Rdf3 {[%clk 0:02:24]} 25. Qxe6+ {[%clk 0:00:57]}  Kh8 {[%clk 0:02:23]} 26. Kg2 {[%clk 0:00:39]}  Rxf2+ {[%clk 0:02:23]} 27. Kh3 {[%clk 0:00:38]}  R2f6 {[%clk 0:02:21]} 28. Qd5 {[%clk 0:00:36]}  Re8 {[%clk 0:02:18]} 29. Rc1 {[%clk 0:00:22]}  Rfe6 {[%clk 0:02:15]} 30. Rc4 {[%clk 0:00:22]}  Re5 {[%clk 0:02:14]} 31. Qc6 {[%clk 0:00:21]}  R5e6 {[%clk 0:02:08]} 32. Qd7 {[%clk 0:00:18]}  R6e7 {[%clk 0:02:07]} 33. Qb5 {[%clk 0:00:07]}  Re5 {[%clk 0:02:06]} 34. Qa4 {[%clk 0:00:08]}  h5 {[%clk 0:02:04]} 35. Kg2 {[%clk 0:00:07]}  Kh7 {[%clk 0:02:03]} 36. Qb4 {[%clk 0:00:04]}  Bf8 {[%clk 0:01:52]} 37. Qb7+ {[%clk 0:00:05]}  Kh8 {[%clk 0:01:48]} 38. Rc7 {[%clk 0:00:04]}  Kg8 {[%clk 0:01:43]} 39. Rh7 {[%clk 0:00:03]}  Be7 {[%clk 0:01:40]} 40. Qc6 {[%clk 0:00:04]}  Kxh7 {[%clk 0:01:37]} 41. Qxe8 {[%clk 0:00:04]}  Rxe4 {[%clk 0:01:37]} 42. Qf7+ {[%clk 0:00:05]}  Kh6 {[%clk 0:01:36]} 43. h4 {[%clk 0:00:04]}  Re5 {[%clk 0:01:35]} 44. Qg8 {[%clk 0:00:04]}  Bf6 {[%clk 0:01:35]} 45. Kf3 {[%clk 0:00:04]}  Rf5+ {[%clk 0:01:32]} 46. Ke4 {[%clk 0:00:04]}  Bg7 {[%clk 0:01:33]} 47. Qc8 {[%clk 0:00:03]}  Kh7 {[%clk 0:01:32]} 48. Qb7 {[%clk 0:00:02]}  Rf6 {[%clk 0:01:31]} 49. Qd7 {[%clk 0:00:02]}  Rf1 {[%clk 0:01:30]} 50. Ke3 {[%clk 0:00:02]}  Rf5 {[%clk 0:01:28]} 51. Ke2 {[%clk 0:00:02]}  Kg8 {[%clk 0:01:25]} 52. Ke3 {[%clk 0:00:02]}  Rf6 {[%clk 0:01:24]} 53. Ke2 {[%clk 0:00:02]}  Kh7 {[%clk 0:01:21]} 54. Ke3 {[%clk 0:00:01]}  Ra6 {[%clk 0:01:21]} 55. Ke2 {[%clk 0:00:02]}  Ra3 {[%clk 0:01:21]} 56. Qd5 {[%clk 0:00:01]}  Rxg3 {[%clk 0:01:20]} 57. Qe6 {[%clk 0:00:01]}  Rg4 {[%clk 0:01:20]} 58. Kf3 {[%clk 0:00:02]}  Rxh4 {[%clk 0:01:20]} 59. Qe7 {[%clk 0:00:03]}  Rg4 {[%clk 0:01:20]} 60. Qd7 {[%clk 0:00:03]}  Rg5 {[%clk 0:01:19]} 61. Qe7 {[%clk 0:00:03]}  Rf5+ {[%clk 0:01:19]} 62. Kg3 {[%clk 0:00:04]}  Kh6 {[%clk 0:01:19]} 63. Qd7 {[%clk 0:00:03]}  Bf6 {[%clk 0:01:19]} 64. Kh3 {[%clk 0:00:03]}  Be5 {[%clk 0:01:17]} 65. Qe6 {[%clk 0:00:03]}  Kg5 {[%clk 0:01:17]} 66. Kg2 {[%clk 0:00:03]}  h4 {[%clk 0:01:15]} 67. Qc4 {[%clk 0:00:03]}  Rf4 {[%clk 0:01:13]} 68. Qc5 {[%clk 0:00:04]}  Kf5 {[%clk 0:01:13]} 69. Qf8+ {[%clk 0:00:04]}  Kg5 {[%clk 0:01:13]} 70. Qc8 {[%clk 0:00:05]}  Rf5 {[%clk 0:01:13]} 71. Qc4 {[%clk 0:00:04]}  Bg3 {[%clk 0:01:13]} 72. Qe4 {[%clk 0:00:04]}  Rf2+ {[%clk 0:01:13]} 73. Kg1 {[%clk 0:00:04]}  Rf4 {[%clk 0:01:13]} 74. Qe3 {[%clk 0:00:04]}  Kg4 {[%clk 0:01:12]} 75. Qe2+ {[%clk 0:00:04]}  Kf5 {[%clk 0:01:10]} 76. Qb5+ {[%clk 0:00:04]}  Kf6 {[%clk 0:01:10]} 77. Qc6+ {[%clk 0:00:05]}  Kg5 {[%clk 0:01:10]} 78. Qd5+ {[%clk 0:00:04]}  Kh6 {[%clk 0:01:11]} 79. Qg8 {[%clk 0:00:04]}  Re4 {[%clk 0:01:08]} 80. Qh8+ {[%clk 0:00:03]}  Kg5 {[%clk 0:01:09]} 81. Qd8+ {[%clk 0:00:04]}  Kf4 {[%clk 0:01:08]} 82. Qd5 {[%clk 0:00:04]}  Re1+ {[%clk 0:01:05]} 83. Kg2 {[%clk 0:00:04]}  Re2+ {[%clk 0:01:05]} 84. Kg1 {[%clk 0:00:04]}  g5 {[%clk 0:01:04]} 85. Qc4+ {[%clk 0:00:04]}  Re4 {[%clk 0:01:03]} 86. Qf1+ {[%clk 0:00:05]}  Kg4 {[%clk 0:01:01]} 87. Qd1+ {[%clk 0:00:05]}  Kf5 {[%clk 0:01:01]} 88. Qd5+ {[%clk 0:00:05]}  Be5 {[%clk 0:01:01]} 89. Kg2 {[%clk 0:00:05]}  Rd4 {[%clk 0:00:55]} 90. Qf7+ {[%clk 0:00:05]}  Bf6 {[%clk 0:00:53]} 91. Qh7+ {[%clk 0:00:05]}  Kg4 {[%clk 0:00:51]} 92. Qc7 {[%clk 0:00:03]}  h3+ {[%clk 0:00:51]} 93. Kg1 {[%clk 0:00:03]}  Rf4 {[%clk 0:00:50]} 94. Qc2 {[%clk 0:00:02]}  Bd4+ {[%clk 0:00:50]} 95. Kh1 {[%clk 0:00:03]}  Rf1+ {[%clk 0:00:49]} 96. Kh2 {[%clk 0:00:03]}  Rf2+ {[%clk 0:00:50]} 97. Qxf2 {[%clk 0:00:03]}  Bxf2 {[%clk 0:00:51]} 98. Kh1 {[%clk 0:00:04]}  Bg3 {[%clk 0:00:50]} 99. Kg1 {[%clk 0:00:04]}  Be5 {[%clk 0:00:50]} 100. Kh1 {[%clk 0:00:05]}  Bh8 {[%clk 0:00:51]} 101. Kg1 {[%clk 0:00:05]}  Kf3 {[%clk 0:00:51]} 102. Kh1 {[%clk 0:00:06]}  g4 {[%clk 0:00:52]} 103. Kg1 {[%clk 0:00:07]}  g3 {[%clk 0:00:52]} 104. Kh1 {[%clk 0:00:08]}  Bg7 {[%clk 0:00:53]} 105. Kg1 {[%clk 0:00:09]}  Bd4+ {[%clk 0:00:53]} 106. Kh1 {[%clk 0:00:10]}  g2+ {[%clk 0:00:54]} 0-1


[Site "https://www.chess.com"]

[Event "Titled Tuesday Blitz January 17 Early 2023"]
[White "Royal, Shreyas"]
[Black "Jimenez, Joaquin"]
[WhiteFideId "448869"]
[BlackFideId "109860"]
[WhiteElo "2438"]
[BlackElo "2195"]
[Result "0-1"]
[Round "03"]
[TimeControl "180+2"]
[Date "2023.01.17"]
[WhiteClock "0:01:10"]
[BlackClock "0:00:06"]

1. e4 {[%clk 0:02:59]}  e6 {[%clk 0:02:58]} 2. d4 {[%clk 0:02:59]}  d5 {[%clk 0:02:57]} 3. Nd2 {[%clk 0:02:59]}  Nf6 {[%clk 0:02:55]} 4. exd5 {[%clk 0:02:57]}  exd5 {[%clk 0:02:55]} 5. Ngf3 {[%clk 0:02:57]}  Bd6 {[%clk 0:02:52]} 6. Bd3 {[%clk 0:02:57]}  c6 {[%clk 0:02:49]} 7. O-O {[%clk 0:02:57]}  O-O {[%clk 0:02:45]} 8. c3 {[%clk 0:02:57]}  Bg4 {[%clk 0:02:31]} 9. h3 {[%clk 0:02:57]}  Bh5 {[%clk 0:02:22]} 10. Qc2 {[%clk 0:02:50]}  Bg6 {[%clk 0:02:21]} 11. Ne5 {[%clk 0:02:38]}  Bxd3 {[%clk 0:02:16]} 12. Qxd3 {[%clk 0:02:38]}  Nbd7 {[%clk 0:02:13]} 13. f4 {[%clk 0:02:38]}  Re8 {[%clk 0:02:02]} 14. b4 {[%clk 0:02:32]}  Ne4 {[%clk 0:01:59]} 15. Nxe4 {[%clk 0:02:29]}  dxe4 {[%clk 0:01:56]} 16. Qc4 {[%clk 0:02:25]}  Qe7 {[%clk 0:01:50]} 17. Be3 {[%clk 0:02:16]}  Nf6 {[%clk 0:01:45]} 18. Qb3 {[%clk 0:02:10]}  Nd5 {[%clk 0:01:40]} 19. Rae1 {[%clk 0:02:09]}  a5 {[%clk 0:01:27]} 20. a3 {[%clk 0:02:02]}  axb4 {[%clk 0:01:25]} 21. axb4 {[%clk 0:02:03]}  Bxe5 {[%clk 0:01:25]} 22. dxe5 {[%clk 0:02:00]}  b5 {[%clk 0:01:21]} 23. Bc5 {[%clk 0:02:00]}  Qe6 {[%clk 0:01:12]} 24. Rxe4 {[%clk 0:01:42]}  Nxf4 {[%clk 0:01:04]} 25. Qd1 {[%clk 0:01:42]}  Ng6 {[%clk 0:01:01]} 26. Bd4 {[%clk 0:01:39]}  Ra2 {[%clk 0:00:58]} 27. Qf3 {[%clk 0:01:37]}  Qd5 {[%clk 0:00:46]} 28. e6 {[%clk 0:01:32]}  f6 {[%clk 0:00:31]} 29. Bxf6 {[%clk 0:01:29]}  gxf6 {[%clk 0:00:30]} 30. Qxf6 {[%clk 0:01:29]}  Rxg2+ {[%clk 0:00:28]} 31. Kh1 {[%clk 0:01:26]}  Re7 {[%clk 0:00:21]} 32. Rd4 {[%clk 0:01:10]}  Rf2+ {[%clk 0:00:09]} 33. Rxd5 {[%clk 0:01:11]}  Rxf6 {[%clk 0:00:10]} 34. Rd8+ {[%clk 0:01:12]}  Kg7 {[%clk 0:00:09]} 35. Rfd1 {[%clk 0:01:11]}  Rfxe6 {[%clk 0:00:09]} 36. R8d7 {[%clk 0:01:11]}  Rxd7 {[%clk 0:00:08]} 37. Rxd7+ {[%clk 0:01:12]}  Kh6 {[%clk 0:00:09]} 38. Kg2 {[%clk 0:01:12]}  Re3 {[%clk 0:00:07]} 39. c4 {[%clk 0:01:10]}  bxc4 {[%clk 0:00:07]} 40. Rd4 {[%clk 0:01:11]}  c3 {[%clk 0:00:06]} 41. Rc4 {[%clk 0:01:11]}  Ne5 {[%clk 0:00:06]} 42. Rc5 {[%clk 0:01:11]}  Nd3 {[%clk 0:00:05]} 43. Rxc6+ {[%clk 0:01:11]}  Kg5 {[%clk 0:00:05]} 44. b5 {[%clk 0:01:11]}  c2 {[%clk 0:00:05]} 45. Rxc2 {[%clk 0:01:05]}  Ne1+ {[%clk 0:00:04]} 46. Kf2 {[%clk 0:01:05]}  Nxc2 {[%clk 0:00:05]} 47. b6 {[%clk 0:01:06]}  Rb3 {[%clk 0:00:05]} 48. b7 {[%clk 0:01:07]}  Rxb7 {[%clk 0:00:05]} 49. Kg3 {[%clk 0:01:08]}  Kh5 {[%clk 0:00:06]} 50. h4 {[%clk 0:01:09]}  Rb4 {[%clk 0:00:06]} 51. Kh3 {[%clk 0:01:10]}  Rxh4+ {[%clk 0:00:06]} 0-1


[Site "https://www.chess.com"]

[Event "Titled Tuesday Blitz January 17 Early 2023"]
[White "Sreyas Payyappat"]
[Black "Leiva, Gianmarco"]
[WhiteFideId "46674969"]
[BlackFideId "3804399"]
[WhiteElo "2076"]
[BlackElo "2392"]
[Result "0-1"]
[Round "03"]
[TimeControl "180+2"]
[Date "2023.01.17"]
[WhiteClock "0:00:28"]
[BlackClock "0:00:53"]

1. e4 {[%clk 0:03:00]}  c5 {[%clk 0:02:46]} 2. Nf3 {[%clk 0:03:00]}  d6 {[%clk 0:02:45]} 3. d4 {[%clk 0:03:00]}  cxd4 {[%clk 0:02:46]} 4. Nxd4 {[%clk 0:03:00]}  Nf6 {[%clk 0:02:46]} 5. Nc3 {[%clk 0:03:00]}  a6 {[%clk 0:02:46]} 6. h4 {[%clk 0:02:58]}  e5 {[%clk 0:02:42]} 7. Nb3 {[%clk 0:02:57]}  Be7 {[%clk 0:02:40]} 8. Bg5 {[%clk 0:02:56]}  Be6 {[%clk 0:02:37]} 9. Bxf6 {[%clk 0:02:56]}  Bxf6 {[%clk 0:02:37]} 10. g3 {[%clk 0:02:56]}  Be7 {[%clk 0:02:36]} 11. Qd2 {[%clk 0:02:55]}  Nd7 {[%clk 0:02:36]} 12. O-O-O {[%clk 0:02:55]}  Rc8 {[%clk 0:02:30]} 13. Bh3 {[%clk 0:02:53]}  Nf6 {[%clk 0:02:03]} 14. f4 {[%clk 0:02:49]}  b5 {[%clk 0:01:57]} 15. fxe5 {[%clk 0:02:39]}  dxe5 {[%clk 0:01:57]} 16. Qg5 {[%clk 0:02:24]}  Qc7 {[%clk 0:01:57]} 17. Bxe6 {[%clk 0:02:22]}  fxe6 {[%clk 0:01:57]} 18. Rh2 {[%clk 0:02:03]}  Nxe4 {[%clk 0:01:56]} 19. Qxg7 {[%clk 0:01:58]}  Bg5+ {[%clk 0:01:56]} 20. hxg5 {[%clk 0:01:55]}  Qxg7 {[%clk 0:01:55]} 21. Nxe4 {[%clk 0:01:56]}  O-O {[%clk 0:01:52]} 22. Nbc5 {[%clk 0:01:36]}  Rxc5 {[%clk 0:01:51]} 23. Nxc5 {[%clk 0:01:37]}  Qxg5+ {[%clk 0:01:50]} 24. Kb1 {[%clk 0:01:35]}  Qxg3 {[%clk 0:01:45]} 25. Rhh1 {[%clk 0:01:35]}  Kh8 {[%clk 0:01:31]} 26. Rd7 {[%clk 0:01:12]}  Qh3 {[%clk 0:01:27]} 27. Rhd1 {[%clk 0:00:58]}  h5 {[%clk 0:01:06]} 28. a3 {[%clk 0:00:54]}  Rf1 {[%clk 0:01:03]} 29. Rd8+ {[%clk 0:00:46]}  Kh7 {[%clk 0:01:03]} 30. Rd7+ {[%clk 0:00:38]}  Kg6 {[%clk 0:00:57]} 31. Ka2 {[%clk 0:00:34]}  Rxd1 {[%clk 0:00:56]} 32. Rxd1 {[%clk 0:00:35]}  Qg4 {[%clk 0:00:57]} 33. Rd6 {[%clk 0:00:31]}  Qc4+ {[%clk 0:00:55]} 34. Nb3 {[%clk 0:00:30]}  h4 {[%clk 0:00:55]} 35. Kb1 {[%clk 0:00:29]}  h3 {[%clk 0:00:55]} 36. Nd2 {[%clk 0:00:28]}  h2 {[%clk 0:00:53]} 0-1


[Site "https://www.chess.com"]

[Event "Titled Tuesday Blitz January 17 Early 2023"]
[White "Rangel, Daniel"]
[Black "Estrada Nieto, Julian"]
[WhiteFideId "2124475"]
[BlackFideId "5101018"]
[WhiteElo "2207"]
[BlackElo "2215"]
[Result "0-1"]
[Round "03"]
[TimeControl "180+2"]
[Date "2023.01.17"]
[WhiteClock "0:00:09"]
[BlackClock "0:00:10"]

1. c4 {[%clk 0:03:00]}  e5 {[%clk 0:02:59]} 2. g3 {[%clk 0:03:01]}  Nf6 {[%clk 0:02:59]} 3. Bg2 {[%clk 0:03:01]}  d5 {[%clk 0:03:00]} 4. cxd5 {[%clk 0:03:01]}  Nxd5 {[%clk 0:03:01]} 5. Nf3 {[%clk 0:03:01]}  Nc6 {[%clk 0:03:00]} 6. O-O {[%clk 0:03:01]}  Nb6 {[%clk 0:02:58]} 7. b3 {[%clk 0:02:59]}  Be7 {[%clk 0:02:57]} 8. Bb2 {[%clk 0:02:58]}  f6 {[%clk 0:02:57]} 9. Na3 {[%clk 0:02:56]}  O-O {[%clk 0:02:57]} 10. Nc2 {[%clk 0:02:56]}  Bg4 {[%clk 0:02:54]} 11. h3 {[%clk 0:02:56]}  Bh5 {[%clk 0:02:54]} 12. g4 {[%clk 0:02:55]}  Bf7 {[%clk 0:02:50]} 13. d4 {[%clk 0:02:53]}  exd4 {[%clk 0:02:42]} 14. Ncxd4 {[%clk 0:02:49]}  Nxd4 {[%clk 0:02:42]} 15. Qxd4 {[%clk 0:02:40]}  Qxd4 {[%clk 0:02:24]} 16. Nxd4 {[%clk 0:02:41]}  c6 {[%clk 0:02:22]} 17. Nf5 {[%clk 0:02:40]}  Rfe8 {[%clk 0:02:21]} 18. e4 {[%clk 0:02:28]}  Bf8 {[%clk 0:02:19]} 19. Rfd1 {[%clk 0:02:24]}  Red8 {[%clk 0:02:16]} 20. h4 {[%clk 0:02:18]}  a5 {[%clk 0:02:10]} 21. g5 {[%clk 0:02:13]}  Nd7 {[%clk 0:01:57]} 22. gxf6 {[%clk 0:01:47]}  Nxf6 {[%clk 0:01:56]} 23. e5 {[%clk 0:01:44]}  Nd5 {[%clk 0:01:46]} 24. Re1 {[%clk 0:01:44]}  Be6 {[%clk 0:01:45]} 25. Nd4 {[%clk 0:01:41]}  Re8 {[%clk 0:01:42]} 26. Nxe6 {[%clk 0:01:38]}  Rxe6 {[%clk 0:01:42]} 27. Bxd5 {[%clk 0:01:39]}  cxd5 {[%clk 0:01:41]} 28. f4 {[%clk 0:01:39]}  g6 {[%clk 0:01:41]} 29. Rad1 {[%clk 0:01:37]}  Rd8 {[%clk 0:01:39]} 30. Kg2 {[%clk 0:01:36]}  Ra6 {[%clk 0:01:26]} 31. Rd3 {[%clk 0:01:30]}  Kf7 {[%clk 0:01:25]} 32. e6+ {[%clk 0:01:20]}  Rxe6 {[%clk 0:01:22]} 33. Rxe6 {[%clk 0:01:09]}  Kxe6 {[%clk 0:01:22]} 34. Kf3 {[%clk 0:01:10]}  Rc8 {[%clk 0:01:15]} 35. Re3+ {[%clk 0:01:09]}  Kf7 {[%clk 0:01:15]} 36. Be5 {[%clk 0:01:08]}  Rc2 {[%clk 0:01:12]} 37. a4 {[%clk 0:01:08]}  Bc5 {[%clk 0:01:10]} 38. Rd3 {[%clk 0:01:07]}  Ke6 {[%clk 0:01:05]} 39. Kg4 {[%clk 0:01:05]}  Rg2+ {[%clk 0:00:58]} 40. Kf3 {[%clk 0:01:05]}  Rf2+ {[%clk 0:00:55]} 41. Kg4 {[%clk 0:01:05]}  h5+ {[%clk 0:00:53]} 42. Kg5 {[%clk 0:01:01]}  Rg2+ {[%clk 0:00:53]} 43. Kh6 {[%clk 0:01:00]}  Rg4 {[%clk 0:00:50]} 44. Rc3 {[%clk 0:00:53]}  b6 {[%clk 0:00:50]} 45. Rd3 {[%clk 0:00:53]}  Rg2 {[%clk 0:00:37]} 46. Kg7 {[%clk 0:00:46]}  Rg4 {[%clk 0:00:27]} 47. Rf3 {[%clk 0:00:40]}  Kf5 {[%clk 0:00:26]} 48. Rf1 {[%clk 0:00:27]}  d4 {[%clk 0:00:23]} 49. Rd1 {[%clk 0:00:22]}  Ke4 {[%clk 0:00:22]} 50. Kf6 {[%clk 0:00:20]}  d3 {[%clk 0:00:18]} 51. Ke6 {[%clk 0:00:14]}  Rg2 {[%clk 0:00:16]} 52. Kf6 {[%clk 0:00:13]}  d2 {[%clk 0:00:15]} 53. Bc3 {[%clk 0:00:13]}  Kd3 {[%clk 0:00:14]} 54. Bxd2 {[%clk 0:00:07]}  Rxd2 {[%clk 0:00:14]} 55. Rxd2+ {[%clk 0:00:08]}  Kxd2 {[%clk 0:00:14]} 56. Kxg6 {[%clk 0:00:09]}  Ke3 {[%clk 0:00:10]} 57. f5 {[%clk 0:00:09]}  Be7 {[%clk 0:00:10]} 58. Kxh5 {[%clk 0:00:09]}  Kf4 {[%clk 0:00:09]} 59. Kg6 {[%clk 0:00:07]}  Bxh4 {[%clk 0:00:09]} 60. f6 {[%clk 0:00:08]}  Ke4 {[%clk 0:00:09]} 61. f7 {[%clk 0:00:06]}  Be7 {[%clk 0:00:09]} 62. Kh5 {[%clk 0:00:01]}  Kd4 {[%clk 0:00:10]} 63. Kg6 {[%clk 0:00:02]}  Kc3 {[%clk 0:00:09]} 64. Kf5 {[%clk 0:00:03]}  Kxb3 {[%clk 0:00:09]} 65. Ke6 {[%clk 0:00:04]}  Bf8 {[%clk 0:00:09]} 66. Kd7 {[%clk 0:00:05]}  Kxa4 {[%clk 0:00:09]} 67. Kc6 {[%clk 0:00:06]}  Kb4 {[%clk 0:00:09]} 68. Kd5 {[%clk 0:00:07]}  a4 {[%clk 0:00:10]} 69. Kc6 {[%clk 0:00:07]}  a3 {[%clk 0:00:10]} 70. Kd7 {[%clk 0:00:08]}  Bc5 {[%clk 0:00:09]} 71. Ke8 {[%clk 0:00:09]}  a2 {[%clk 0:00:10]} 72. f8=Q {[%clk 0:00:09]}  Bxf8 {[%clk 0:00:10]} 0-1


[Site "https://www.chess.com"]